[Event "1er Open Estival de Marseille"]
[Site "Marseille, France"]
[Date "2023.08.02"]
[Round "4.2"]
[White "Vu Dinh, Adrien"]
[Black "Espinosa Aranda, Angel"]
[Result "0-1"]
[TimeControl "90+30s/move"]
[WhiteElo "2168"]
[BlackElo "2443"]

1. e4 {[%clk 01:30:59]} c5 {[%clk 01:30:49]} {[%emt 00:00:11]} 2. Nf3 {[%clk
01:31:25]} {[%emt 00:00:04]} e6 {[%clk 01:31:03]} {[%emt 00:00:16]} 3. d4
{[%clk 01:31:52]} {[%emt 00:00:03]} cxd4 {[%clk 01:31:21]} {[%emt 00:00:12]} 4.
Nxd4 {[%clk 01:32:20]} {[%emt 00:00:02]} a6 {[%clk 01:31:43]} {[%emt 00:00:08]}
5. c4 {[%clk 01:32:47]} {[%emt 00:00:03]} Nf6 {[%clk 01:32:10]} {[%emt
00:00:04]} 6. Nc3 {[%clk 01:33:13]} {[%emt 00:00:04]} Bb4 {[%clk 01:32:37]}
{[%emt 00:00:03]} 7. Qd3 {[%clk 01:33:37]} {[%emt 00:00:06]} O-O {[%clk
01:33:03]} {[%emt 00:00:04]} 8. e5 {[%clk 01:33:57]} {[%emt 00:00:09]} Ne8
{[%clk 01:33:28]} {[%emt 00:00:05]} 9. Bf4 {[%clk 01:34:23]} {[%emt 00:00:04]}
d6 {[%clk 01:33:56]} {[%emt 00:00:03]} 10. exd6 {[%clk 01:34:47]} {[%emt
00:00:05]} Bxd6 {[%clk 01:34:05]} {[%emt 00:00:21]} 11. Nf3 {[%clk 01:34:43]}
{[%emt 00:00:34]} Qe7 {[%clk 01:25:31]} {[%emt 00:09:04]} 12. Bxd6 {[%clk
01:26:54]} {[%emt 00:08:19]} Nxd6 {[%clk 01:25:54]} {[%emt 00:00:07]} 13. O-O-O
{[%clk 01:19:14]} {[%emt 00:08:10]} Ne8 {[%clk 01:25:58]} {[%emt 00:00:26]} 14.
h4 {[%clk 00:58:51]} {[%emt 00:20:53]} Nd7 {[%clk 01:24:20]} {[%emt 00:02:07]}
15. Be2 {[%clk 00:43:35]} {[%emt 00:15:47]} b5 {[%clk 01:19:31]} {[%emt
00:05:20]} 16. cxb5 {[%clk 00:42:45]} {[%emt 00:01:20]} axb5 {[%clk 01:18:33]}
{[%emt 00:01:28]} 17. Qxb5 {[%clk 00:42:15]} {[%emt 00:01:00]} Nef6 {[%clk
01:18:44]} {[%emt 00:00:18]} 18. Qc6 {[%clk 00:39:22]} {[%emt 00:03:21]} Ra5
{[%clk 01:02:04]} {[%emt 00:17:12]} 19. Qd6 {[%clk 00:38:34]} {[%emt 00:01:17]}
Qd8 {[%clk 01:02:26]} {[%emt 00:00:09]} 20. Nd4 {[%clk 00:25:52]} {[%emt
00:13:12]} Bb7 {[%clk 01:00:38]} {[%emt 00:02:17]} 21. Nc6 {[%clk 00:23:35]}
{[%emt 00:02:46]} Bxc6 {[%clk 01:00:36]} {[%emt 00:00:33]} 22. Qxc6 {[%clk
00:24:05]} {[%emt 00:00:01]} Qb8 {[%clk 01:00:48]} {[%emt 00:00:17]} 23. Rxd7
{[%clk 00:16:28]} {[%emt 00:08:07]} Rc8 {[%clk 01:01:01]} {[%emt 00:00:17]} 24.
Rhd1 {[%clk 00:15:10]} {[%emt 00:01:48]} Nxd7 {[%clk 00:59:36]} {[%emt
00:01:55]} 25. Qxd7 {[%clk 00:15:27]} {[%emt 00:00:13]} Rxa2 {[%clk 00:59:58]}
{[%emt 00:00:08]} 26. Qb5 {[%clk 00:12:10]} {[%emt 00:03:47]} Qf4+ {[%clk
00:56:10]} {[%emt 00:04:18]} 27. Kb1 {[%clk 00:12:30]} {[%emt 00:00:10]} Raa8
{[%clk 00:56:34]} {[%emt 00:00:06]} 28. Qg5 {[%clk 00:07:54]} {[%emt 00:05:06]}
Qxf2 {[%clk 00:56:07]} {[%emt 00:00:57]} 29. Ba6 {[%clk 00:06:58]} {[%emt
00:01:25]} h6 {[%clk 00:55:10]} {[%emt 00:01:28]} 30. Qb5 {[%clk 00:06:32]}
{[%emt 00:00:57]} Rcb8 {[%clk 00:50:35]} {[%emt 00:05:05]} 31. Qe2 {[%clk
00:04:08]} {[%emt 00:02:53]} Qxh4 {[%clk 00:48:22]} {[%emt 00:02:43]} 32. Bb5
{[%clk 00:04:37]} {[%emt 00:00:01]} Qb4 {[%clk 00:47:50]} {[%emt 00:01:02]} 33.
Qc4 {[%clk 00:04:24]} {[%emt 00:00:43]} Qa5 {[%clk 00:48:06]} {[%emt 00:00:14]}
34. Qa4 {[%clk 00:04:14]} {[%emt 00:00:40]} Qb6 {[%clk 00:46:21]} {[%emt
00:02:15]} 35. Qd4 {[%clk 00:04:31]} {[%emt 00:00:12]} Qa5 {[%clk 00:44:07]}
{[%emt 00:02:44]} 36. Qa4 {[%clk 00:04:56]} {[%emt 00:00:04]} Qc7 {[%clk
00:44:32]} {[%emt 00:00:06]} 37. Qc4 {[%clk 00:05:14]} {[%emt 00:00:12]} Qe5
{[%clk 00:44:53]} {[%emt 00:00:09]} 38. Qe2 {[%clk 00:04:35]} {[%emt 00:01:08]}
Qf5+ {[%clk 00:43:12]} {[%emt 00:02:12]} 39. Qd3 {[%clk 00:04:43]} {[%emt
00:00:23]} Qg5 {[%clk 00:42:55]} {[%emt 00:00:46]} 40. Qd2 {[%clk 00:04:50]}
{[%emt 00:00:21]} Rxb5 {[%clk 00:43:08]} {[%emt 00:00:19]} 41. Nxb5 {[%clk
00:05:12]} {[%emt 00:00:08]} Qxb5 {[%clk 00:43:34]} {[%emt 00:00:05]} 42. Qd3
{[%clk 00:05:04]} {[%emt 00:00:36]} Qa4 {[%clk 00:43:34]} {[%emt 00:00:31]} 43.
Qd7 {[%clk 00:00:53]} {[%emt 00:04:41]} Qa2+ {[%clk 00:43:35]} {[%emt
00:00:29]} 44. Kc2 {[%clk 00:01:00]} {[%emt 00:00:23]} Rb8 {[%clk 00:43:47]}
{[%emt 00:00:19]} 45. Qd4 {[%clk 00:01:06]} {[%emt 00:00:24]} Rc8+ {[%clk
00:39:56]} {[%emt 00:04:21]} 46. Kd2 {[%clk 00:01:26]} {[%emt 00:00:08]} Qb3
{[%clk 00:39:59]} {[%emt 00:00:28]} 47. Ke1 {[%clk 00:01:16]} {[%emt 00:00:40]}
Qg3+ {[%clk 00:36:36]} {[%emt 00:03:54]} 48. Kf1 {[%clk 00:01:22]} {[%emt
00:00:23]} e5 {[%clk 00:34:38]} {[%emt 00:02:28]} 49. Qd2 {[%clk 00:00:59]}
{[%emt 00:00:52]} e4 {[%clk 00:33:43]} {[%emt 00:01:26]} 50. Re1 {[%clk
00:00:54]} {[%emt 00:00:35]} Qd3+ {[%clk 00:32:20]} {[%emt 00:01:54]} 51. Qxd3
{[%clk 00:01:18]} {[%emt 00:00:06]} exd3 {[%clk 00:32:47]} {[%emt 00:00:03]} 52.
Rd1 {[%clk 00:01:36]} {[%emt 00:00:12]} Rc2 {[%clk 00:33:14]} {[%emt 00:00:04]}
53. Rxd3 {[%clk 00:01:40]} {[%emt 00:00:25]} Rxb2 {[%clk 00:33:40]} {[%emt
00:00:04]} 54. Kg1 {[%clk 00:02:05]} {[%emt 00:00:05]} g5 {[%clk 00:34:01]}
{[%emt 00:00:09]} 55. Kh2 {[%clk 00:02:26]} {[%emt 00:00:09]} Kg7 {[%clk
00:34:26]} {[%emt 00:00:05]} 56. Kh3 {[%clk 00:02:25]} {[%emt 00:00:30]} Kg6
{[%clk 00:34:43]} {[%emt 00:00:14]} 57. Rd6+ {[%clk 00:02:50]} {[%emt
00:00:05]} f6 {[%clk 00:35:10]} {[%emt 00:00:04]} 58. g4 {[%clk 00:03:07]}
{[%emt 00:00:12]} Rf2 {[%clk 00:35:25]} {[%emt 00:00:15]} 59. Kg3 {[%clk
00:03:25]} {[%emt 00:00:11]} Rf4 {[%clk 00:35:16]} {[%emt 00:00:39]} 60. Rd8
{[%clk 00:03:39]} {[%emt 00:00:15]} h5 {[%clk 00:35:28]} {[%emt 00:00:18]} 61.
gxh5+ {[%clk 00:04:03]} {[%emt 00:00:06]} Kxh5 {[%clk 00:35:53]} {[%emt
00:00:05]} 62. Rg8 {[%clk 00:04:24]} {[%emt 00:00:09]} Kh6 {[%clk 00:36:17]}
{[%emt 00:00:06]} 63. Rh8+ {[%clk 00:04:44]} {[%emt 00:00:09]} Kg6 {[%clk
00:36:40]} {[%emt 00:00:08]} 64. Rb8 {[%clk 00:05:10]} {[%emt 00:00:04]} Ra4
{[%clk 00:36:02]} {[%emt 00:01:08]} 65. Rc8 {[%clk 00:05:34]} {[%emt 00:00:05]}
Ra3+ {[%clk 00:36:28]} {[%emt 00:00:04]} 0-1

[Event "1er Open Estival de Marseille"]
[Site "Marseille, France"]
[Date "2023.08.02"]
[Round "4.3"]
[White "Charlier, Antoine"]
[Black "Alshameary Puente, Ismael"]
[Result "1-0"]
[TimeControl "90+30s/move"]
[WhiteElo "1992"]
[BlackElo "2322"]

1. d4 {[%emt 00:02:23]} Nf6 {[%emt 00:00:07]} 2. c4 {[%emt 00:00:40]} e6 {[%emt
00:00:05]} 3. Nc3 {[%emt 00:00:33]} Bb4 {[%emt 00:00:07]} 4. e3 {[%emt
00:01:05]} O-O {[%emt 00:00:14]} 5. Bd3 {[%emt 00:03:44]} d5 {[%emt 00:03:52]}
6. Nge2 {[%emt 00:04:58]} dxc4 {[%emt 00:01:10]} 7. Bxc4 {[%emt 00:00:16]} e5
{[%emt 00:00:13]} 8. O-O {[%emt 00:06:00]} Nc6 {[%emt 00:05:20]} 9. d5 {[%emt
00:11:10]} Ne7 {[%emt 00:00:19]} 10. e4 {[%emt 00:02:51]} Ng6 {[%emt 00:00:42]}
11. a3 {[%emt 00:04:42]} Bd6 {[%emt 00:03:15]} 12. Ng3 {[%emt 00:06:51]} a6
{[%emt 00:09:17]} 13. Re1 {[%emt 00:12:35]} h6 {[%emt 00:11:17]} 14. h3 Bc5
{[%emt 00:08:23]} 15. Be3 Bxe3 {[%emt 00:08:59]} 16. Rxe3 {[%emt 00:01:32]} Nf4
{[%emt 00:05:06]} 17. Rc1 g6 {[%emt 00:12:47]} 18. Bf1 Re8 {[%emt 00:04:09]} 19.
b4 h5 20. Nge2 b6 21. Nxf4 exf4 22. Re1 Qd6 {[%emt 00:21:42]} 23. Qd4 Nd7
{[%emt 00:19:18]} 24. Na4 Ne5 25. Nb2 Bxh3 {[%emt 00:04:50]} 26. Nc4 {[%emt
00:00:37]} Qf6 {[%emt 00:00:34]} 27. Nxe5 {[%emt 00:02:42]} Rxe5 {[%emt
00:00:02]} 28. Qd3 {[%emt 00:01:10]} Bg4 {[%emt 00:02:57]} 29. Rxc7 {[%emt
00:03:36]} f3 {[%emt 00:00:34]} 30. Rc6 {[%emt 00:01:31]} Qd8 {[%emt 00:05:35]}
31. Qe3 {[%emt 00:05:26]} fxg2 {[%emt 00:02:09]} 32. Bxg2 {[%emt 00:00:40]} Rb8
{[%emt 00:00:32]} 33. Qf4 {[%emt 00:01:33]} Qe8 {[%emt 00:04:08]} 34. f3 {[%emt
00:00:33]} Bd7 {[%emt 00:00:10]} 35. Rcc1 {[%emt 00:00:31]} a5 {[%emt
00:00:22]} 36. Red1 {[%emt 00:00:28]} axb4 {[%emt 00:00:06]} 37. axb4 {[%emt
00:00:06]} Qe7 {[%emt 00:00:22]} 38. Rc7 {[%emt 00:00:35]} Rd8 {[%emt
00:01:34]} 39. Qd2 {[%emt 00:00:51]} Rg5 {[%emt 00:00:23]} 40. d6 {[%emt
00:00:29]} Qf6 {[%emt 00:00:19]} 41. Kf2 {[%emt 00:00:32]} Re5 {[%emt
00:00:27]} 42. Qc3 {[%emt 00:00:29]} Be6 {[%emt 00:01:09]} 43. d7 {[%emt
00:00:24]} Qh4+ {[%emt 00:00:16]} 44. Kf1 {[%emt 00:00:28]} Rg5 {[%emt
00:00:36]} 45. Qf6 {[%emt 00:00:25]} Rg4 {[%emt 00:00:34]} 46. Qxd8+ {[%emt
00:00:32]} Qxd8 {[%emt 00:00:02]} 47. Rc8 {[%emt 00:00:08]} Qxc8 {[%emt
00:01:04]} 48. dxc8=Q+ {[%emt 00:00:08]} Bxc8 {[%emt 00:00:02]} 49. fxg4 {[%emt
00:00:12]} Bxg4 {[%emt 00:00:02]} 50. Rd6 {[%emt 00:00:15]} b5 {[%emt
00:00:31]} 51. Kf2 {[%emt 00:00:14]} 1-0

[Event "1er Open Estival de Marseille"]
[Site "Marseille, France"]
[Date "2023.08.02"]
[Round "4.1"]
[White "Philippe, Guillaume"]
[Black "Zienkiewicz, Jan"]
[Result "1/2-1/2"]
[TimeControl "90+30s/move"]
[WhiteElo "2362"]
[BlackElo "2189"]

1. Nf3 {[%clk 01:30:56]} {[%emt 00:00:02]} Nf6 {[%clk 01:28:35]} {[%emt
00:02:26]} 2. e3 {[%clk 01:29:48]} {[%emt 00:01:37]} g6 {[%clk 01:28:09]}
{[%emt 00:00:56]} 3. b4 {[%clk 01:30:06]} {[%emt 00:00:12]} Bg7 {[%clk
01:27:40]} {[%emt 00:01:00]} 4. Bb2 {[%clk 01:30:21]} {[%emt 00:00:14]} O-O
{[%clk 01:26:46]} {[%emt 00:01:24]} 5. c4 {[%clk 01:29:55]} {[%emt 00:00:56]}
d5 {[%clk 01:17:45]} {[%emt 00:09:31]} 6. cxd5 {[%clk 01:28:40]} {[%emt
00:01:45]} Nxd5 {[%clk 01:16:58]} {[%emt 00:01:18]} 7. Bxg7 {[%clk 01:28:59]}
{[%emt 00:00:10]} Kxg7 {[%clk 01:17:26]} {[%emt 00:00:02]} 8. Qb3 {[%clk
01:28:55]} {[%emt 00:00:33]} Qd6 {[%clk 01:11:46]} {[%emt 00:06:10]} 9. a3
{[%clk 01:27:01]} {[%emt 00:02:24]} e5 {[%clk 01:10:48]} {[%emt 00:01:30]} 10.
Qb2 {[%clk 01:26:32]} {[%emt 00:00:59]} f6 {[%clk 01:08:05]} {[%emt 00:03:13]}
11. d3 {[%clk 01:25:38]} {[%emt 00:01:24]} b6 {[%clk 01:04:41]} {[%emt
00:03:54]} 12. Nbd2 {[%clk 01:19:19]} {[%emt 00:06:47]} Bb7 {[%clk 01:04:36]}
{[%emt 00:00:36]} 13. Be2 {[%clk 01:19:29]} {[%emt 00:00:20]} Nd7 {[%clk
01:03:22]} {[%emt 00:01:43]} 14. O-O {[%clk 01:19:28]} {[%emt 00:00:32]} Rac8
{[%clk 00:58:45]} {[%emt 00:05:08]} 15. Rfc1 {[%clk 01:18:38]} {[%emt
00:01:19]} c5 {[%clk 00:53:11]} {[%emt 00:06:04]} 16. Ne4 {[%clk 01:14:54]}
{[%emt 00:04:14]} Qe7 {[%clk 00:52:55]} {[%emt 00:00:47]} 17. bxc5 {[%clk
01:07:41]} {[%emt 00:07:44]} Nxc5 {[%clk 00:52:46]} {[%emt 00:00:38]} 18. Nxc5
{[%clk 01:08:03]} {[%emt 00:00:08]} Rxc5 {[%clk 00:52:06]} {[%emt 00:01:11]} 19.
Rxc5 {[%clk 01:08:06]} {[%emt 00:00:27]} Qxc5 {[%clk 00:51:32]} {[%emt
00:01:04]} 20. Rc1 {[%clk 01:08:31]} {[%emt 00:00:04]} Qe7 {[%clk 00:48:36]}
{[%emt 00:03:26]} 21. h3 {[%clk 01:06:49]} {[%emt 00:02:12]} Nc7 {[%clk
00:39:09]} {[%emt 00:09:57]} 22. a4 {[%clk 01:03:23]} {[%emt 00:03:57]} Ne6
{[%clk 00:37:43]} {[%emt 00:01:56]} 23. a5 {[%clk 01:02:34]} {[%emt 00:01:19]}
bxa5 {[%clk 00:37:06]} {[%emt 00:01:08]} 24. Qb5 {[%clk 01:01:42]} {[%emt
00:01:21]} Rd8 {[%clk 00:32:38]} {[%emt 00:04:58]} 25. Qxa5 {[%clk 00:54:36]}
{[%emt 00:07:36]} Bxf3 {[%clk 00:30:20]} {[%emt 00:02:49]} 26. gxf3 {[%clk
00:54:58]} {[%emt 00:00:08]} Qb7 {[%clk 00:26:36]} {[%emt 00:04:11]} 27. Kg2
{[%clk 00:52:53]} Rd7 {[%clk 00:25:46]} {[%emt 00:03:57]} 28. Rc4 {[%clk
00:52:00]} Re7 {[%clk 00:17:58]} {[%emt 00:09:40]} 29. h4 {[%emt 00:04:40]} Rc7
{[%clk 00:15:46]} {[%emt 00:01:21]} 30. Rb4 {[%clk 00:49:21]} {[%emt 00:00:21]}
Qc6 {[%clk 00:15:50]} {[%emt 00:00:26]} 31. Qa2 {[%clk 00:47:19]} {[%emt
00:02:32]} Qd6 {[%clk 00:12:45]} {[%emt 00:03:35]} 32. Ra4 {[%clk 00:44:37]}
{[%emt 00:03:12]} Qe7 {[%clk 00:13:07]} {[%emt 00:00:08]} 33. Qb2 {[%clk
00:38:29]} {[%emt 00:06:38]} Nd8 {[%clk 00:10:32]} {[%emt 00:03:06]} 34. d4
{[%clk 00:38:32]} {[%emt 00:00:27]} exd4 {[%clk 00:10:15]} {[%emt 00:00:47]} 35.
Rxd4 {[%clk 00:38:52]} {[%emt 00:00:10]} Nf7 {[%clk 00:10:13]} {[%emt
00:00:31]} 36. Ra4 {[%clk 00:38:41]} {[%emt 00:00:41]} Nd6 {[%clk 00:09:34]}
{[%emt 00:01:09]} 37. Qa1 {[%clk 00:36:41]} {[%emt 00:02:29]} Nf5 {[%clk
00:08:44]} {[%emt 00:01:22]} 1/2-1/2

[ePGN "0.1;DGT LiveChess/2.2.5"]

[Event "1er Open Estival de Marseille"]
[Site "Marseille, France"]
[Date "2023.08.03"]
[Round "5.3"]
[White "Cacinschi, Alexandru"]
[Black "Charlier, Antoine"]
[Result "1/2-1/2"]
[TimeControl "90+30s/move"]
[WhiteElo "2074"]
[BlackElo "1992"]

1. c4 {[%clk 01:30:57]} {[%emt 00:00:02]} e5 {[%clk 01:18:26]} {[%emt
00:12:34]} 2. Nc3 {[%clk 01:31:14]} {[%emt 00:00:12]} Nc6 {[%clk 01:18:31]}
{[%emt 00:00:26]} 3. g3 {[%clk 01:31:12]} {[%emt 00:00:32]} g6 {[%clk
01:18:00]} {[%emt 00:01:01]} 4. Bg2 {[%clk 01:30:47]} {[%emt 00:00:53]} Bg7
{[%clk 01:16:50]} {[%emt 00:01:41]} 5. d3 {[%clk 01:30:28]} {[%emt 00:00:49]}
d6 {[%clk 01:16:35]} {[%emt 00:00:46]} 6. f4 {[%clk 01:29:19]} {[%emt
00:01:38]} Nge7 {[%clk 01:15:14]} {[%emt 00:01:51]} 7. Nf3 {[%clk 01:28:53]}
{[%emt 00:00:56]} Bd7 {[%clk 01:09:20]} {[%emt 00:06:25]} 8. fxe5 {[%clk
01:24:28]} {[%emt 00:04:55]} dxe5 {[%clk 01:08:40]} {[%emt 00:01:10]} 9. O-O
{[%clk 01:24:25]} {[%emt 00:00:33]} O-O {[%clk 01:06:56]} {[%emt 00:02:15]} 10.
Ng5 {[%clk 01:22:17]} {[%emt 00:02:38]} Qc8 {[%clk 01:03:44]} {[%emt 00:03:42]}
11. Nd5 {[%clk 01:19:04]} {[%emt 00:03:43]} Nxd5 {[%clk 01:01:40]} {[%emt
00:02:35]} 12. Bxd5 {[%clk 01:13:11]} {[%emt 00:06:23]} Nd8 {[%clk 00:58:27]}
{[%emt 00:03:42]} 13. Bg2 {[%clk 01:07:41]} {[%emt 00:06:00]} Ne6 {[%clk
00:55:50]} {[%emt 00:03:07]} 14. Nxe6 {[%clk 01:03:25]} {[%emt 00:04:46]} Bxe6
{[%clk 00:55:46]} {[%emt 00:00:35]} 15. Be3 {[%clk 01:03:43]} {[%emt 00:00:12]}
Bh3 {[%clk 00:51:27]} {[%emt 00:04:48]} 16. Qd2 {[%clk 01:00:42]} {[%emt
00:03:31]} Bxg2 {[%clk 00:49:27]} {[%emt 00:02:31]} 17. Kxg2 {[%clk 01:01:05]}
{[%emt 00:00:07]} Qe6 {[%clk 00:48:55]} {[%emt 00:01:02]} 18. Bh6 {[%clk
00:55:32]} {[%emt 00:06:03]} Rad8 {[%clk 00:43:05]} {[%emt 00:06:21]} 19. Bxg7
{[%clk 00:55:08]} {[%emt 00:00:53]} Kxg7 {[%clk 00:42:26]} {[%emt 00:01:08]} 20.
Qe3 {[%clk 00:54:56]} {[%emt 00:00:41]} b6 {[%clk 00:42:15]} {[%emt 00:00:42]}
21. Rf2 {[%clk 00:54:41]} {[%emt 00:00:45]} f5 {[%clk 00:40:35]} {[%emt
00:02:10]} 22. Raf1 {[%clk 00:53:41]} {[%emt 00:01:30]} Rfe8 {[%clk 00:39:08]}
{[%emt 00:01:58]} 23. Qg5 {[%clk 00:50:03]} {[%emt 00:04:05]} h6 {[%clk
00:38:28]} {[%emt 00:01:12]} 24. Qc1 {[%clk 00:49:03]} {[%emt 00:01:30]} e4
{[%clk 00:35:45]} {[%emt 00:03:12]} 25. g4 {[%clk 00:46:36]} {[%emt 00:02:58]}
exd3 {[%clk 00:34:20]} {[%emt 00:01:56]} 26. exd3 {[%clk 00:46:32]} {[%emt
00:00:34]} Rxd3 {[%clk 00:16:25]} {[%emt 00:18:25]} 27. gxf5 {[%clk 00:46:38]}
{[%emt 00:00:24]} Qe4+ {[%clk 00:16:40]} {[%emt 00:00:14]} 28. Kg1 {[%clk
00:46:52]} {[%emt 00:00:15]} Rf8 {[%clk 00:16:23]} {[%emt 00:00:48]} 29. Rf4
{[%clk 00:42:38]} {[%emt 00:04:44]} Qe3+ {[%clk 00:14:28]} {[%emt 00:02:25]} 30.
Qxe3 {[%clk 00:42:59]} {[%emt 00:00:10]} Rxe3 {[%clk 00:14:53]} {[%emt
00:00:05]} 31. fxg6 {[%clk 00:43:16]} {[%emt 00:00:13]} Rxf4 {[%emt 00:00:27]}
1/2-1/2

[Event "1er Open Estival de Marseille"]
[Site "Marseille, France"]
[Date "2023.08.03"]
[Round "5.2"]
[White "Zienkiewicz, Jan"]
[Black "Dudognon, Thibault"]
[Result "1/2-1/2"]
[TimeControl "90+30s/move"]
[WhiteElo "2189"]
[BlackElo "2279"]

1. e4 {[%clk 01:27:47]} {[%emt 00:03:13]} c5 {[%clk 01:30:53]} {[%emt
00:00:07]} 2. Nf3 {[%clk 01:27:59]} {[%emt 00:00:18]} d6 {[%clk 01:31:15]}
{[%emt 00:00:07]} 3. d4 {[%clk 01:28:26]} {[%emt 00:00:04]} cxd4 {[%clk
01:31:40]} {[%emt 00:00:05]} 4. Nxd4 {[%clk 01:28:53]} {[%emt 00:00:03]} Nf6
{[%clk 01:32:02]} {[%emt 00:00:07]} 5. Nc3 {[%clk 01:29:18]} {[%emt 00:00:04]}
Bd7 {[%clk 01:32:28]} {[%emt 00:00:05]} 6. Bg5 {[%clk 01:24:31]} {[%emt
00:05:18]} e6 {[%clk 01:32:51]} {[%emt 00:00:06]} 7. Qd2 {[%clk 01:23:35]}
{[%emt 00:01:26]} h6 {[%clk 01:32:47]} {[%emt 00:00:33]} 8. Bxf6 {[%clk
01:16:01]} {[%emt 00:08:05]} Qxf6 {[%clk 01:32:39]} {[%emt 00:00:37]} 9. Ndb5
{[%clk 01:13:49]} {[%emt 00:02:42]} Bxb5 {[%clk 01:32:57]} {[%emt 00:00:12]} 10.
Nxb5 {[%clk 01:07:04]} {[%emt 00:07:16]} Qxb2 {[%clk 01:30:04]} {[%emt
00:03:22]} 11. Rd1 {[%clk 01:02:30]} {[%emt 00:05:04]} Na6 {[%clk 01:27:33]}
{[%emt 00:03:01]} 12. Nxd6+ {[%clk 00:50:07]} {[%emt 00:12:54]} Bxd6 {[%clk
01:27:56]} {[%emt 00:00:06]} 13. Qxd6 {[%clk 00:50:14]} {[%emt 00:00:24]} Qc3+
{[%clk 01:18:22]} {[%emt 00:10:04]} 14. Rd2 {[%clk 00:49:36]} {[%emt 00:01:08]}
Qa1+ {[%clk 01:16:37]} {[%emt 00:02:14]} 15. Rd1 {[%clk 00:45:36]} {[%emt
00:04:31]} Qc3+ {[%clk 01:16:35]} {[%emt 00:00:32]} 16. Rd2 {[%clk 00:45:55]}
{[%emt 00:00:11]} Qa1+ {[%clk 01:17:00]} {[%emt 00:00:04]} 17. Ke2 {[%clk
00:42:01]} {[%emt 00:04:25]} Qb2 {[%clk 01:14:45]} {[%emt 00:02:44]} 18. Ke1
{[%clk 00:26:43]} {[%emt 00:15:49]} Qa1+ {[%emt 00:00:34]} 1/2-1/2

[ePGN "0.1;DGT LiveChess/2.2.5"]

[Event "1er Open Estival de Marseille"]
[Site "Marseille, France"]
[Date "2023.08.04"]
[Round "7.5"]
[White "Charvein, Gabriel"]
[Black "Beranger, Arthur"]
[Result "1-0"]
[TimeControl "90+30s/move"]
[WhiteElo "2038"]
[BlackElo "1548"]

1. e4 {[%clk 01:28:04]} {[%emt 00:02:55]} e6 {[%clk 01:30:51]} {[%emt
00:00:09]} 2. d4 {[%clk 01:28:06]} {[%emt 00:00:27]} d5 {[%clk 01:31:19]}
{[%emt 00:00:02]} 3. Nc3 {[%clk 01:28:30]} {[%emt 00:00:07]} Nf6 {[%clk
01:31:42]} {[%emt 00:00:07]} 4. Bg5 {[%clk 01:28:45]} {[%emt 00:00:15]} dxe4
{[%clk 01:32:05]} {[%emt 00:00:07]} 5. Nxe4 {[%clk 01:23:33]} {[%emt 00:05:43]}
Be7 {[%clk 01:30:56]} {[%emt 00:01:38]} 6. Bxf6 {[%clk 01:23:55]} {[%emt
00:00:09]} gxf6 {[%clk 01:31:17]} {[%emt 00:00:09]} 7. Nf3 {[%clk 01:21:00]}
{[%emt 00:03:24]} f5 {[%clk 01:29:50]} {[%emt 00:01:58]} 8. Nc3 {[%clk
01:20:00]} {[%emt 00:01:31]} O-O {[%clk 01:27:21]} {[%emt 00:02:58]} 9. g3
{[%clk 01:15:23]} {[%emt 00:05:06]} Nd7 {[%clk 01:22:59]} {[%emt 00:04:53]} 10.
Bg2 {[%clk 01:14:46]} {[%emt 00:01:07]} c5 {[%clk 01:22:19]} {[%emt 00:01:10]}
11. O-O {[%clk 00:58:12]} {[%emt 00:17:04]} Bf6 {[%clk 01:19:28]} {[%emt
00:03:20]} 12. Ne2 {[%clk 00:55:11]} {[%emt 00:03:31]} cxd4 {[%clk 01:17:25]}
{[%emt 00:02:33]} 13. Nfxd4 {[%clk 00:55:33]} {[%emt 00:00:08]} Ne5 {[%clk
01:15:32]} {[%emt 00:02:23]} 14. c3 {[%clk 00:54:52]} {[%emt 00:01:12]} Bd7
{[%clk 01:11:40]} {[%emt 00:04:22]} 15. Qb3 {[%clk 00:55:02]} {[%emt 00:00:20]}
Rb8 {[%clk 01:11:08]} {[%emt 00:01:01]} 16. Rfd1 {[%clk 00:49:35]} {[%emt
00:05:57]} Qe7 {[%clk 01:09:12]} {[%emt 00:02:26]} 17. Nf4 {[%clk 00:47:56]}
{[%emt 00:02:09]} Ng6 {[%clk 01:04:00]} {[%emt 00:05:42]} 18. Nxf5 {[%clk
00:47:38]} {[%emt 00:00:48]} Qd8 {[%clk 01:02:20]} {[%emt 00:02:10]} 19. Nh5
{[%clk 00:45:04]} {[%emt 00:03:04]} Bg5 {[%clk 00:59:50]} {[%emt 00:03:00]} 20.
h4 {[%clk 00:36:40]} {[%emt 00:08:53]} exf5 {[%clk 00:52:39]} {[%emt 00:07:43]}
21. hxg5 {[%clk 00:36:16]} {[%emt 00:00:53]} Qxg5 {[%clk 00:53:02]} {[%emt
00:00:07]} 22. Rxd7 {[%clk 00:36:26]} {[%emt 00:00:21]} Qxh5 {[%clk 00:53:20]}
{[%emt 00:00:11]} 23. Re1 {[%clk 00:32:39]} {[%emt 00:04:16]} Rbd8 {[%clk
00:52:13]} {[%emt 00:01:38]} 24. Qd5 {[%clk 00:31:26]} {[%emt 00:01:43]} Rxd7
{[%clk 00:50:55]} {[%emt 00:01:49]} 25. Qxd7 {[%clk 00:31:30]} {[%emt
00:00:26]} f4 {[%clk 00:51:07]} {[%emt 00:00:18]} 26. Qd5 {[%clk 00:21:24]}
{[%emt 00:10:35]} Qh6 {[%clk 00:49:12]} {[%emt 00:02:24]} 27. Qd2 {[%clk
00:21:11]} {[%emt 00:00:44]} Qg5 {[%clk 00:46:58]} {[%emt 00:02:44]} 28. Rd1
{[%clk 00:05:16]} {[%emt 00:16:26]} Re8 {[%clk 00:37:24]} {[%emt 00:10:04]} 29.
b4 {[%clk 00:05:32]} {[%emt 00:00:14]} Qh5 {[%clk 00:32:13]} {[%emt 00:05:40]}
30. Qd5 {[%clk 00:04:10]} {[%emt 00:01:53]} Re1+ {[%clk 00:32:30]} {[%emt
00:00:13]} 31. Rxe1 {[%clk 00:04:35]} {[%emt 00:00:05]} 1-0